bitfinex/quotes_SOLUSD_20240920
["timestamp","ask_amount","ask_price","bid_price","bid_amount"]
[1726837235399,6.6327,150.77,150.71,13.55361744]
[1726837235598,6.633,150.76,150.72,13.55361744]
[1726837235811,6.6327,150.77,150.71,13.55361744]
[1726837236017,6.6327,150.77,150.7,20.0]
[1726837236421,6.6327,150.77,150.69,87.74910932]
[1726837237613,6.6327,150.77,150.7,20.0]
[1726837239121,23.776884,150.78,150.7,20.0]
[1726837239323,30.409084,150.78,150.7,20.0]
[1726837239923,6.6326,150.77,150.7,20.0]
[1726837240430,7.1332,150.76,150.68,20.0]
[1726837240803,13.2578,150.77,150.7,20.0]
[1726837241003,13.2578,150.77,150.71,1.32667263]
[1726837241931,13.2578,150.77,150.7,20.0]
[1726837242422,6.6252,150.77,150.67,22.80839014]
[1726837242619,6.6252,150.77,150.65,66.4567]
[1726837242620,6.634,150.74,150.65,87.60760932]
[1726837243205,23.2072,150.77,150.65,87.60760932]
[1726837243206,6.6346,150.73,150.65,87.60760932]
[1726837243429,6.6339,150.74,150.65,87.60760932]
[1726837244133,6.6339,150.74,150.64,6.93748775]
[1726837244134,6.636,150.7,150.64,6.93748775]
[1726837244325,12.7968,150.7,150.64,6.93748775]
[1726837244522,6.1608,150.7,150.63,50.2563131]
[1726837245133,6.1608,150.7,150.65,50.0]
[1726837245349,22.4392,150.73,150.65,50.0]
[1726837245525,15.8048,150.73,150.66,21.15090932]
[1726837245706,15.8048,150.73,150.67,20.0]
[1726837246016,15.8048,150.73,150.68,22.47784999]
[1726837249110,15.8048,150.73,150.68,21.15090932]
[1726837249317,15.8048,150.73,150.67,70.0]
[1726837249523,15.8048,150.73,150.67,20.0]
[1726837251023,15.8048,150.73,150.67,70.0]
[1726837252242,6.6242,150.74,150.69,20.0]
[1726837252436,6.6242,150.74,150.7,22.47768786]
[1726837252919,6.6242,150.74,150.7,21.15090932]
[1726837253315,22.8808,150.77,150.7,21.15090932]
[1726837254756,6.6336,150.75,150.69,20.0]
[1726837256330,30.409984,150.76,150.69,20.0]
[1726837259143,22.8807,150.77,150.69,70.0]
[1726837259326,22.8807,150.77,150.72,21.15090932]
[1726837259327,16.248,150.77,150.72,21.15090932]
[1726837259652,6.4911,150.78,150.73,1.32654184]
[1726837259850,6.4911,150.78,150.74,22.47735789]
[1726837260029,0.2563131,150.79,150.74,22.47735789]
[1726837260232,0.2563131,150.79,150.75,20.0]
[1726837260951,0.2563131,150.79,150.76,1.32620802]
[1726837261124,0.2563131,150.79,150.77,21.32609883]
[1726837261328,0.2563131,150.79,150.77,71.32609883]
[1726837261629,0.2563131,150.79,150.78,41.15090932]
[1726837262646,0.2563131,150.79,150.78,42.47681813]
[1726837262946,0.2563131,150.79,150.78,41.15090932]
[1726837263250,0.2563131,150.79,150.78,20.0]
[1726837263759,0.2563131,150.79,150.77,50.0]
[1726837263760,0.2563131,150.79,150.77,20.0]
[1726837263933,0.2563131,150.79,150.74,21.15090932]
[1726837264328,0.2563131,150.79,150.73,50.0]
[1726837264753,0.2563131,150.79,150.74,1.32636411]
[1726837264938,0.2563131,150.79,150.73,50.0]
[1726837265135,6.3649,150.78,150.7,16.022]
[1726837265362,12.9971,150.78,150.7,16.022]
[1726837266048,6.6326,150.77,150.69,71.15090932]
[1726837266236,6.3649,150.78,150.7,20.0]
[1726837266631,12.9971,150.78,150.7,20.0]
[1726837267455,6.3649,150.78,150.7,20.0]
[1726837268360,12.9971,150.78,150.7,20.0]
[1726837269758,6.6326,150.77,150.7,20.0]
[1726837269936,0.5,150.76,150.68,20.0]
[1726837270137,6.6335,150.75,150.68,20.0]
[1726837271050,6.3649,150.78,150.68,20.0]
[1726837271051,6.6339,150.74,150.68,20.0]
[1726837271452,6.6339,150.74,150.67,71.15090932]
[1726837272051,16.0188,150.73,150.65,78.08640025]
[1726837272357,6.2895,150.71,150.65,6.93549093]
[1726837272563,6.2895,150.71,150.63,50.2563131]
[1726837272886,24.276884,150.7,150.63,0.2563131]
[1726837273060,6.6369,150.68,150.63,0.2563131]
[1726837273252,7.1369,150.68,150.63,0.2563131]
[1726837273440,6.6369,150.68,150.63,0.2563131]
[1726837274961,6.6362,150.69,150.63,0.2563131]
[1726837275542,6.2895,150.71,150.64,50.0]
[1726837275747,6.2895,150.71,150.63,0.2563131]
[1726837275948,7.1358,150.7,150.63,0.2563131]
[1726837276454,6.2895,150.71,150.63,0.2563131]
[1726837276661,6.6363,150.69,150.63,0.2563131]
[1726837277241,15.4262,150.67,150.63,0.2563131]
[1726837278359,0.12549,150.65,150.63,0.2563131]
[1726837278561,23.776884,150.64,150.63,0.2563131]
[1726837279760,13.1878,150.66,150.63,0.2563131]
[1726837280057,24.276884,150.65,150.63,0.2563131]
[1726837280451,23.776884,150.65,150.63,0.2563131]
[1726837280652,30.414784,150.65,150.63,0.2563131]
[1726837281567,30.914784,150.65,150.63,0.2563131]
[1726837281747,30.540674,150.64,150.63,0.2563131]
[1726837283063,23.776884,150.64,150.63,0.2563131]
[1726837284174,6.5503,150.66,150.63,0.2563131]
[1726837285965,23.776884,150.65,150.63,0.2563131]
[1726837287054,30.414884,150.65,150.63,0.2563131]
[1726837287275,6.76379,150.64,150.63,0.2563131]
[1726837287570,30.540674,150.64,150.63,0.2563131]
[1726837288655,23.776884,150.64,150.63,0.2563131]
[1726837288846,13.1878,150.66,150.63,0.2563131]
[1726837289048,13.6878,150.66,150.63,0.2563131]
[1726837290069,30.414784,150.65,150.63,0.2563131]
[1726837293084,31.040674,150.64,150.63,0.2563131]
[1726837293456,30.540674,150.64,150.63,0.2563131]
[1726837294677,30.540674,150.64,150.58,0.2563131]
[1726837294678,36.716574,150.59,150.58,0.2563131]
[1726837294878,30.076074,150.59,150.58,0.2563131]
[1726837295456,36.716574,150.59,150.58,0.2563131]
[1726837302782,6.2825,150.63,150.58,0.2563131]
[1726837303589,6.6399,150.61,150.58,0.2563131]
[1726837304169,6.6401,150.6,150.58,0.2563131]
[1726837305087,30.542874,150.59,150.58,0.2563131]
[1726837307892,31.042874,150.59,150.58,0.2563131]
[1726837308768,30.542874,150.59,150.58,0.2563131]
[1726837312398,31.042874,150.59,150.58,0.2563131]
[1726837312779,30.542874,150.59,150.58,0.2563131]
[1726837314584,31.042874,150.59,150.58,0.2563131]
[1726837315388,30.542874,150.59,150.58,0.2563131]
[1726837318296,6.2825,150.63,150.58,0.2563131]
[1726837318597,6.6405,150.59,150.58,0.2563131]
[1726837319503,30.542874,150.59,150.58,0.2563131]
[1726837322680,6.2825,150.63,150.58,0.2563131]
[1726837322999,6.6405,150.59,150.58,0.2563131]
[1726837324000,30.542874,150.59,150.58,0.2563131]
[1726837324222,23.776884,150.59,150.58,0.2563131]
[1726837324403,6.6396,150.61,150.58,0.2563131]
[1726837324795,6.6401,150.6,150.58,0.2563131]
[1726837324996,6.64,150.61,150.58,0.2563131]
[1726837325610,6.6401,150.6,150.58,0.2563131]
[1726837326208,6.6397,150.61,150.58,0.2563131]
[1726837326399,6.6401,150.6,150.58,0.2563131]
[1726837327307,6.6398,150.61,150.58,0.2563131]
[1726837327507,23.776884,150.6,150.58,0.2563131]
[1726837327700,6.6401,150.6,150.58,0.2563131]
[1726837327935,23.776884,150.59,150.58,0.2563131]
[1726837328292,30.542874,150.59,150.58,0.2563131]
[1726837329803,31.042874,150.59,150.58,0.2563131]
[1726837330001,30.542874,150.59,150.58,0.2563131]
[1726837331002,23.902374,150.59,150.58,0.2563131]
[1726837331324,23.776884,150.59,150.58,0.2563131]
[1726837331529,6.6402,150.6,150.58,0.2563131]
[1726837333235,31.042874,150.59,150.58,0.2563131]
[1726837334223,30.542874,150.59,150.58,0.2563131]
[1726837335111,23.776884,150.58,150.51,12.47971263]
[1726837335318,6.6401,150.6,150.52,21.32840146]
[1726837335627,23.776884,150.59,150.52,20.0]
[1726837336007,23.776884,150.59,150.53,13.56822128]
[1726837336202,30.417384,150.59,150.53,13.56822128]
[1726837336733,7.1411,150.58,150.52,20.0]
[1726837337223,23.776884,150.57,150.52,20.0]
[1726837337426,0.5,150.56,150.52,20.0]
[1726837338309,6.6421,150.56,150.52,20.0]
[1726837338632,6.6423,150.55,150.51,12.47971263]
[1726837339438,6.642,150.56,150.51,12.47971263]
[1726837340815,0.12549,150.57,150.51,12.47971263]
[1726837341021,30.419184,150.55,150.51,12.47971263]
[1726837341321,6.6423,150.55,150.51,12.47971263]
[1726837342318,0.5,150.54,150.5,20.0]
[1726837342719,6.6423,150.55,150.49,20.3636659]
[1726837343435,0.5,150.54,150.49,20.3636659]
[1726837343632,23.776884,150.54,150.49,20.3636659]
[1726837343821,6.6427,150.54,150.49,20.3636659]
[1726837344526,6.6427,150.54,150.49,0.3636659]
[1726837344527,24.276884,150.53,150.49,0.3636659]
[1726837344716,6.6441,150.51,150.49,0.3636659]
[1726837344915,23.902374,150.5,150.49,0.3636659]
[1726837345245,30.546874,150.5,150.49,0.3636659]
[1726837351438,31.046874,150.5,150.49,0.3636659]
[1726837351643,30.546874,150.5,150.49,0.3636659]
[1726837353046,23.776884,150.5,150.49,0.3636659]
[1726837353242,6.6433,150.53,150.49,0.3636659]
[1726837353541,0.5,150.53,150.49,0.3636659]
[1726837353720,6.644,150.51,150.49,0.3636659]
[1726837354233,7.1445,150.5,150.49,0.3636659]
[1726837354430,6.6445,150.5,150.49,0.3636659]
[1726837354741,30.546874,150.5,150.49,0.3636659]
[1726837355443,23.776884,150.51,150.49,0.3636659]
[1726837355836,6.6439,150.52,150.49,0.3636659]
[1726837356034,6.6445,150.5,150.49,0.3636659]
[1726837357042,30.546874,150.5,150.49,0.3636659]
[1726837358844,31.046874,150.5,150.49,0.3636659]
[1726837359537,30.546874,150.5,150.49,0.3636659]
[1726837365649,50.486874,150.5,150.49,0.3636659]
[1726837365950,50.486874,150.5,150.43,0.3282944]
[1726837365951,6.77259,150.44,150.43,0.3282944]
[1726837366141,30.549474,150.44,150.43,0.3282944]
[1726837378138,6.6471,150.44,150.43,0.3282944]
[1726837378644,7.1471,150.44,150.43,0.3282944]
[1726837379356,30.423984,150.44,150.43,0.3282944]
[1726837379562,30.549474,150.44,150.43,0.3282944]
[1726837379769,31.049474,150.44,150.43,0.3282944]
[1726837381052,23.2696,150.41,150.4,0.3636659]
[1726837381547,6.77389,150.41,150.4,0.3636659]
[1726837382473,7.27389,150.41,150.4,0.3636659]
[1726837382946,7.27389,150.41,150.34,0.3282944]
[1726837382947,0.12549,150.35,150.34,0.3282944]
[1726837383149,30.553474,150.35,150.34,0.3282944]
[1726837383548,0.12549,150.38,150.34,0.3282944]
[1726837383748,30.427184,150.37,150.34,0.3282944]
[1726837385750,23.902374,150.35,150.34,0.3282944]
[1726837385954,30.553474,150.35,150.34,0.3282944]
[1726837392564,6.6511,150.35,150.34,0.3282944]
[1726837392770,6.6503,150.37,150.34,0.3282944]
[1726837393151,6.6499,150.38,150.34,6.9796944]
[1726837393449,6.6494,150.39,150.35,6.651]
[1726837393644,6.6499,150.38,150.34,0.3282944]
[1726837394878,6.6503,150.37,150.34,0.3282944]
[1726837395371,23.776884,150.36,150.34,0.3282944]
[1726837395574,16.6206,150.42,150.34,0.3282944]
[1726837396273,6.6499,150.38,150.34,0.3282944]
[1726837396664,6.6503,150.37,150.34,0.3282944]
[1726837396976,23.776884,150.36,150.34,0.3282944]
[1726837397176,30.427584,150.36,150.34,0.3282944]
[1726837397363,0.5,150.35,150.34,0.3282944]
[1726837397671,30.427584,150.36,150.34,0.3282944]
[1726837397858,23.776884,150.36,150.34,0.3282944]
[1726837398062,0.12549,150.4,150.34,0.3282944]
[1726837398748,0.12549,150.35,150.34,0.3282944]
[1726837398953,0.12549,150.4,150.34,0.3282944]
[1726837399179,6.6511,150.35,150.34,0.3282944]
[1726837399360,30.427984,150.35,150.34,0.3282944]
[1726837399564,30.553474,150.35,150.34,0.3282944]
[1726837409481,6.6524,150.32,150.31,0.3636659]
[1726837409790,30.554774,150.32,150.31,0.3636659]
[1726837411164,30.554774,150.32,150.25,0.3282944]
[1726837411165,6.6551,150.26,150.25,0.3282944]
[1726837411373,6.78059,150.26,150.25,0.3282944]
[1726837411595,30.557474,150.26,150.25,0.3282944]
[1726837412991,30.557474,150.26,150.22,0.3636659]
[1726837412992,30.432684,150.25,150.22,0.4010897]
[1726837413175,30.558774,150.23,150.22,0.5852791]
[1726837413588,23.776884,150.23,150.22,0.5852791]
[1726837413788,30.558774,150.23,150.22,0.5852791]
[1726837414577,31.058774,150.23,150.22,0.5852791]
[1726837414909,22.862,150.25,150.18,0.2937369]
[1726837414910,6.6582,150.19,150.18,0.2937369]
[1726837415079,6.6577,150.21,150.18,0.2937369]
[1726837415400,30.559674,150.21,150.18,0.2937369]
[1726837415999,23.776884,150.19,150.18,0.2937369]
[1726837416301,24.276884,150.2,150.18,0.2937369]
[1726837416479,23.776884,150.2,150.18,0.2937369]
[1726837416891,24.402374,150.19,150.18,0.2937369]
[1726837417075,31.060574,150.19,150.18,0.2937369]
[1726837417280,30.560574,150.19,150.18,0.2937369]
[1726837419991,23.902374,150.19,150.18,0.2937369]
[1726837420783,30.560574,150.19,150.18,0.2937369]
[1726837421006,46.961474,150.19,150.18,0.2937369]
[1726837421185,30.561474,150.17,150.16,0.0719813]
[1726837422909,6.78459,150.17,150.16,0.0719813]
[1726837423405,6.6587,150.18,150.16,0.0719813]
[1726837424607,16.6417,150.23,150.16,0.0719813]
[1726837424790,6.6578,150.2,150.16,0.0719813]
[1726837425194,6.6582,150.19,150.16,0.0719813]
[1726837425610,0.5,150.18,150.16,0.0719813]
[1726837425785,0.5,150.22,150.16,0.0719813]
[1726837426183,6.6591,150.17,150.16,0.0719813]
[1726837426411,30.561474,150.17,150.16,0.0719813]
[1726837429190,31.061474,150.17,150.16,0.0719813]
[1726837429393,30.561474,150.17,150.16,0.0719813]
[1726837430086,50.501474,150.17,150.16,0.0719813]
[1726837430296,6.78589,150.14,150.13,0.4010897]
[1726837430518,6.78589,150.14,150.07,0.3657182]
[1726837430519,6.6631,150.08,150.07,0.3657182]
[1726837430818,23.776884,150.08,150.07,0.3657182]
[1726837430991,30.439984,150.08,150.07,0.3657182]
[1726837431297,23.776884,150.08,150.07,0.3657182]
[1726837431498,23.776884,150.09,150.07,0.3657182]
[1726837432013,0.12549,150.11,150.07,0.3657182]
[1726837432014,6.78729,150.11,150.07,0.3657182]
[1726837432319,6.6618,150.11,150.07,0.0719813]
[1726837432816,6.6614,150.12,150.07,0.0719813]
[1726837433033,6.6618,150.11,150.07,0.0719813]
[1726837433191,6.6623,150.1,150.07,0.0719813]
[1726837433391,0.5,150.09,150.07,0.0719813]
[1726837433622,23.776884,150.09,150.07,0.0719813]
[1726837433807,6.78709,150.12,150.07,0.0719813]
[1726837434007,24.276884,150.11,150.07,0.0719813]
[1726837434399,30.938684,150.11,150.07,0.0719813]
[1726837435335,0.5,150.1,150.07,0.0719813]
[1726837436294,6.6625,150.1,150.07,0.0719813]
[1726837436920,0.12549,150.12,150.07,0.0719813]
[1726837437126,16.655,150.11,150.07,0.0719813]
[1726837437323,24.402374,150.1,150.07,0.0719813]
[1726837437528,6.6627,150.09,150.07,0.0719813]
[1726837437706,30.439984,150.08,150.07,0.0719813]
[1726837437901,23.776884,150.09,150.07,0.0719813]
[1726837438128,0.5,150.08,150.07,0.0719813]
[1726837438306,23.776884,150.09,150.07,0.0719813]
[1726837439219,6.6631,150.08,150.07,0.0719813]
[1726837439412,23.776884,150.08,150.07,0.0719813]
[1726837439935,30.439984,150.08,150.07,0.0719813]
[1726837440913,30.565474,150.08,150.07,0.0719813]
[1726837441114,31.065474,150.08,150.07,0.0719813]
[1726837442107,30.565474,150.08,150.07,0.0719813]
[1726837442303,31.065474,150.08,150.07,0.0719813]
[1726837442505,30.566774,150.05,150.04,0.4583858]
[1726837442915,6.6644,150.05,150.04,0.4583858]
[1726837444128,6.3974,150.14,150.04,0.4583858]
[1726837444129,33.1084,150.12,150.04,0.4583858]
[1726837444633,6.6635,150.08,150.04,0.4583858]
[1726837444934,6.6634,150.08,150.04,0.4583858]
[1726837445113,6.6644,150.05,150.04,0.4583858]
[1726837445431,30.441284,150.05,150.04,0.4583858]
[1726837446131,30.566774,150.05,150.04,0.4583858]
[1726837447508,6.5344,150.11,150.04,0.4583858]
[1726837447726,6.6644,150.05,150.04,0.4583858]
[1726837449423,30.566774,150.05,150.04,0.4583858]
[1726837450523,30.441284,150.05,150.04,0.4583858]
[1726837450729,6.6644,150.05,150.04,0.4583858]
[1726837452142,30.566774,150.05,150.04,0.4583858]
[1726837452523,47.227874,150.05,150.04,0.4583858]
[1726837452725,47.727874,150.05,150.04,0.4583858]
[1726837453422,47.227874,150.05,150.04,0.4583858]
[1726837454219,0.5,150.05,150.04,0.4583858]
[1726837454426,13.44711746,150.11,150.04,0.4583858]
[1726837454427,6.664,150.06,150.04,0.4583858]
[1726837455042,6.6644,150.05,150.04,0.4583858]
[1726837455570,7.1644,150.05,150.04,0.4583858]
[1726837455751,6.6644,150.05,150.04,0.4583858]
[1726837455933,16.6575,150.09,150.04,0.4583858]
[1726837456150,6.664,150.06,150.04,0.4583858]
[1726837456328,6.6636,150.07,150.04,0.4583858]
[1726837456527,16.6537,150.12,150.04,0.4583858]
[1726837456724,6.3957,150.15,150.04,7.0121858]
[1726837457223,6.6631,150.08,150.04,7.0121858]
[1726837457644,16.6528,150.13,150.04,7.0121858]
[1726837457645,0.5,150.07,150.04,7.0121858]
[1726837457841,6.6641,150.06,150.04,7.0121858]
[1726837458053,6.6634,150.08,150.04,7.0121858]
[1726837458347,6.6627,150.09,150.04,7.0121858]
[1726837458534,16.6514,150.14,150.06,16.0269]
[1726837458722,6.6613,150.12,150.06,16.0269]
[1726837458923,6.6622,150.1,150.06,16.0269]
[1726837459122,16.6505,150.15,150.06,16.0269]
[1726837459365,6.6622,150.1,150.06,16.0269]
[1726837459540,6.6623,150.1,150.06,16.0269]
[1726837460045,6.6617,150.12,150.06,16.0269]
[1726837460244,16.6505,150.15,150.06,16.0269]
[1726837460457,6.6621,150.11,150.06,16.0269]
[1726837460654,6.6614,150.12,150.06,16.0269]
[1726837460861,23.56948016,150.18,150.07,1.3325198]
[1726837461159,6.6613,150.13,150.08,1.33244222]
[1726837461361,16.6496,150.16,150.06,16.0269]
[1726837461568,0.5,150.15,150.06,16.0269]
[1726837461936,6.6618,150.11,150.06,16.0269]
[1726837462244,16.6496,150.16,150.06,16.0269]
[1726837462245,6.6614,150.12,150.06,16.0269]
[1726837462552,6.6612,150.13,150.06,16.0269]
[1726837462862,6.6617,150.11,150.06,16.0269]
[1726837463042,0.12549,150.14,150.06,16.0269]
[1726837463236,6.6623,150.1,150.06,16.0269]
[1726837463584,6.6625,150.1,150.06,16.0269]
[1726837463756,6.6618,150.11,150.06,16.0269]
[1726837464663,6.6622,150.1,150.06,16.0269]
[1726837465443,6.6617,150.11,150.06,16.0269]
[1726837465846,7.1613,150.12,150.06,16.0269]
[1726837466046,6.6618,150.11,150.06,16.0269]
[1726837466264,6.6628,150.09,150.06,16.0269]
[1726837466448,7.1631,150.08,150.06,16.0269]
[1726837466659,6.6631,150.08,150.06,16.0269]
[1726837466844,0.5,150.12,150.06,16.0269]
[1726837466845,6.6635,150.07,150.06,16.0269]
[1726837467040,6.664,150.06,150.04,0.4583858]
[1726837467356,6.6631,150.08,150.04,0.4583858]
[1726837468048,23.902374,150.1,150.04,0.4583858]
[1726837468358,6.6644,150.05,150.04,0.4583858]
[1726837469361,30.566774,150.05,150.04,0.4583858]
[1726837470853,31.066774,150.05,150.04,0.4583858]
[1726837471265,30.566774,150.05,150.04,0.4583858]
[1726837472377,6.6644,150.05,150.04,0.4583858]
[1726837474050,30.566774,150.05,150.04,0.4583858]
[1726837475751,6.6671,149.99,149.98,17.0116822]
[1726837478478,30.443984,149.99,149.98,0.5067822]
[1726837478669,30.569474,149.99,149.98,0.5067822]
[1726837478856,31.069474,149.99,149.98,0.5067822]
[1726837479175,31.069474,149.99,149.95,0.1073528]
[1726837479176,6.6684,149.96,149.95,0.1073528]
[1726837479359,30.570774,149.96,149.95,0.1073528]
[1726837482290,30.445284,149.96,149.95,0.1073528]
[1726837483369,23.776884,149.96,149.95,0.1073528]
[1726837483867,30.445284,149.96,149.95,0.1073528]
[1726837485684,30.945284,149.96,149.95,0.1073528]
[1726837487878,31.070774,149.96,149.95,0.1073528]
[1726837488982,31.070774,149.96,149.84,28.23845681]
[1726837488983,6.6698,149.93,149.79,254.5]
[1726837489188,24.402374,149.96,149.85,20.0]
[1726837489189,6.6704,149.92,149.85,20.0]
[1726837489591,6.6707,149.91,149.83,20.0]
[1726837490394,6.6711,149.9,149.83,20.0]
[1726837490591,6.6711,149.9,149.82,21.31480525]
[1726837490887,0.12549,149.94,149.82,21.31480525]
[1726837491094,23.902374,149.94,149.83,1.33430842]
[1726837491313,6.6714,149.9,149.83,1.33430842]
[1726837491497,6.6716,149.89,149.8,21.31480525]
[1726837491791,6.6699,149.93,149.83,20.0]
[1726837491983,17.2128599,149.96,149.84,22.9798]
[1726837492292,6.6709,149.91,149.84,22.9798]
[1726837492488,6.6706,149.91,149.84,22.9798]
[1726837493674,17.2128599,149.96,149.85,20.0]
[1726837493880,6.67,149.93,149.85,20.0]
[1726837494079,17.2128599,149.96,149.85,20.0]
[1726837494292,0.5409599,149.96,149.85,20.0]
[1726837494505,0.5409599,149.96,149.88,21.31480525]
[1726837494673,0.5409599,149.96,149.89,1.33379243]
[1726837496096,0.5409599,149.96,149.9,1.3337455]
[1726837496602,7.2093599,149.96,149.88,21.31480525]
[1726837496790,7.2093599,149.96,149.87,20.0]
[1726837498778,6.669,149.95,149.87,20.0]
[1726837499004,0.5409599,149.96,149.87,20.0]
[1726837499181,6.6698,149.93,149.88,1.33397295]
[1726837499381,6.6694,149.94,149.86,16.1706]
[1726837500795,6.6694,149.94,149.86,15.6706]
[1726837500996,6.6698,149.93,149.86,15.6706]
[1726837501810,23.902374,149.95,149.86,15.6706]
[1726837502306,6.6701,149.93,149.87,1.33410077]
[1726837502602,6.6701,149.93,149.86,15.6706]
[1726837503184,6.6709,149.91,149.86,15.6706]
[1726837503391,6.6709,149.91,149.87,1.33425509]
[1726837503702,0.12549,149.92,149.86,15.6706]
[1726837504192,6.6712,149.9,149.86,15.6706]
[1726837504497,0.12549,149.92,149.82,15.9102]
[1726837504815,6.6715,149.89,149.82,15.9102]
[1726837505110,6.6716,149.89,149.82,15.9102]
[1726837507182,16.80149,149.92,149.83,1.33444964]
[1726837507386,6.6698,149.93,149.83,41.31480525]
[1726837507701,7.2105599,149.94,149.84,1.33412927]
[1726837507882,6.6697,149.93,149.84,1.33412927]
[1726837508078,0.5409599,149.94,149.85,43.26760525]
[1726837509381,0.5409599,149.94,149.85,93.26760525]
[1726837510120,0.5409599,149.94,149.85,43.26760525]
[1726837510307,7.2103599,149.94,149.85,43.26760525]
[1726837510604,6.6698,149.93,149.85,43.26760525]
[1726837510803,6.6698,149.93,149.86,1.33404]
[1726837511000,7.2103599,149.94,149.86,1.33404]
[1726837511213,7.2103599,149.94,149.85,43.26760525]
[1726837512508,0.5409599,149.94,149.88,20.12549]
[1726837512811,0.5409599,149.94,149.9,20.0]
[1726837513004,0.5409599,149.94,149.91,1.33359552]
[1726837513398,0.5409599,149.94,149.89,16.6552]
[1726837513785,0.5409599,149.94,149.9,20.0]
[1726837513990,0.5409599,149.94,149.91,21.31480525]
[1726837514298,0.5409599,149.94,149.91,27.59420525]
[1726837515300,0.5409599,149.94,149.92,1.33354753]
[1726837515615,0.5409599,149.94,149.91,27.59420525]
[1726837515816,0.5409599,149.94,149.9,20.0]
[1726837515986,0.5409599,149.94,149.89,16.6552]
[1726837519789,0.5409599,149.94,149.91,21.31480525]
[1726837519992,0.5409599,149.94,149.92,1.33342973]
[1726837520205,0.5409599,149.94,149.91,21.31480525]
[1726837521013,0.5409599,149.94,149.9,20.0]
[1726837521306,0.5409599,149.94,149.91,21.31480525]
[1726837521502,0.5409599,149.94,149.92,20.0]
[1726837522498,0.5409599,149.94,149.9,20.0]
[1726837522704,0.5409599,149.94,149.9,41.31480525]
[1726837523009,0.5409599,149.94,149.9,91.31480525]
[1726837523191,0.5409599,149.94,149.9,41.31480525]
[1726837523387,0.5409599,149.94,149.9,91.31480525]
[1726837525097,0.1073528,149.99,149.98,70.12549]
[1726837525301,0.5121387,150.02,150.0,50.0]
[1726837525507,0.5121387,150.02,150.01,42.6473939]
[1726837525990,0.5121387,150.02,150.01,41.31480525]
[1726837526323,0.1073528,150.08,150.04,50.0]
[1726837526490,0.1073528,150.08,150.05,21.31480525]
[1726837527312,0.1073528,150.08,150.06,1.33225236]
[1726837527720,0.1073528,150.08,150.05,21.31480525]
[1726837528115,6.0542,150.17,150.05,21.31480525]
[1726837528116,6.6608,150.14,150.05,36.83600525]
[1726837528414,6.0542,150.17,150.05,36.83600525]
[1726837528415,0.1575956,150.08,150.05,35.83600525]
[1726837528925,0.1575956,150.08,150.06,1.33216345]
[1726837529105,0.1575956,150.08,150.05,35.83600525]
[1726837530415,0.1575956,150.08,150.03,0.12549]
[1726837530416,0.1575956,150.08,150.01,85.4773]
[1726837530914,0.1575956,150.08,150.02,22.64737371]
[1726837531116,0.1575956,150.08,150.02,21.31480525]
[1726837531817,0.1575956,150.08,150.01,93.92530325]
[1726837531995,6.6636,150.07,150.0,21.31480525]
[1726837532197,6.664,150.06,149.98,27.41930525]
[1726837532391,6.664,150.06,149.98,21.31480525]
[1726837532392,6.6643,150.06,149.98,21.31480525]
[1726837532694,6.6643,150.06,149.97,36.79210525]
[1726837532904,6.6645,150.05,149.97,36.79210525]
[1726837533112,6.6649,150.04,149.97,36.79210525]
[1726837534220,6.6645,150.05,149.97,36.79210525]
[1726837535022,6.6645,150.05,149.97,45.2401085]
[1726837535820,16.6597,150.07,149.97,23.92530325]
[1726837536002,16.6597,150.07,149.97,15.4773]
[1726837536196,6.6654,150.03,149.97,15.4773]
[1726837536604,6.6654,150.03,149.94,90.25856913]
[1726837536815,6.6662,150.01,149.94,34.17396913]
[1726837537119,21.7933,150.03,149.93,16.449]
[1726837537321,6.6663,150.01,149.93,16.449]
[1726837538099,6.667,150.0,149.93,16.449]
[1726837539024,6.667,150.0,149.94,1.33333053]
[1726837539323,6.667,150.0,149.93,16.449]
[1726837539628,6.6662,150.01,149.93,16.449]
[1726837541228,6.6667,150.0,149.93,16.449]
[1726837551159,6.7151428,150.04,149.96,20.0]
[1726837551507,6.6654,150.03,149.96,20.0]